[Event "*** Titled Tuesday Blitz"]
[Site "Chess.com"]
[Date "2020.03.03"]
[Round "6"]
[White "superstructure"]
[Black "arjwezhrtdrz"]
[Result "1-0"]
[WhiteElo "2427"]
[BlackElo "2140"]
[TimeControl "180+1"]
[EndTime "14:02:26 PST"]
[Termination "superstructure won by resignation"]

1. Nf3 {[%clk 0:03:00.9]} 1... d6 {[%clk 0:02:58.6]} 2. d4 {[%clk 0:02:58.8]}
2... c6 {[%clk 0:02:59.5]} 3. e4 {[%clk 0:02:57.8]} 3... Nf6 {[%clk 0:02:59.3]}
4. Bd3 {[%clk 0:02:49.7]} 4... Bg4 {[%clk 0:02:58.6]} 5. Nbd2 {[%clk 0:02:47.5]}
5... Nbd7 {[%clk 0:02:58.1]} 6. h3 {[%clk 0:02:46.8]} 6... Bxf3 {[%clk
0:02:40.6]} 7. Nxf3 {[%clk 0:02:47.7]} 7... e5 {[%clk 0:02:37.8]} 8. O-O {[%clk
0:02:37.4]} 8... Be7 {[%clk 0:02:27.6]} 9. b3 {[%clk 0:02:37]} 9... O-O {[%clk
0:02:25.6]} 10. Bb2 {[%clk 0:02:36.5]} 10... Qc7 {[%clk 0:02:25.7]} 11. c4
{[%clk 0:02:33]} 11... a5 {[%clk 0:02:20.7]} 12. a3 {[%clk 0:02:27]} 12... Rfe8
{[%clk 0:02:20.1]} 13. Re1 {[%clk 0:02:23.8]} 13... Rad8 {[%clk 0:02:10]} 14.
Rc1 {[%clk 0:02:17.1]} 14... exd4 {[%clk 0:01:59]} 15. Nxd4 {[%clk 0:02:09.5]}
15... Ne5 {[%clk 0:01:53.1]} 16. Bb1 {[%clk 0:02:06.5]} 16... Bf8 {[%clk
0:01:46.4]} 17. f4 {[%clk 0:01:59.4]} 17... Ng6 {[%clk 0:01:44.4]} 18. Qf3
{[%clk 0:01:58.2]} 18... a4 {[%clk 0:01:28.4]} 19. b4 {[%clk 0:01:47.2]} 19...
Nh4 {[%clk 0:01:03.8]} 20. Qg3 {[%clk 0:01:28.4]} 20... Ng6 {[%clk 0:01:03.9]}
21. Nf5 {[%clk 0:01:26.7]} 21... Nh5 {[%clk 0:01:01.8]} 22. Qc3 {[%clk
0:01:08.7]} 22... Nhxf4 {[%clk 0:00:51.7]} 23. Nxg7 {[%clk 0:01:00.3]} 23... Ne5
{[%clk 0:00:43.6]} 24. Nxe8 {[%clk 0:00:50]} 24... Rxe8 {[%clk 0:00:43.1]} 25.
Qg3+ {[%clk 0:00:48.4]} 25... Nfg6 {[%clk 0:00:43.3]} 26. Rf1 {[%clk 0:00:44]}
26... Bg7 {[%clk 0:00:41.1]} 27. Rf2 {[%clk 0:00:41.6]} 27... Qe7 {[%clk
0:00:28]} 28. c5 {[%clk 0:00:38]} 28... Bf6 {[%clk 0:00:21.8]} 29. Qe3 {[%clk
0:00:23.6]} 29... Bg5 {[%clk 0:00:19.6]} 30. Qc3 {[%clk 0:00:21.4]} 30... Bxc1
{[%clk 0:00:19.1]} 31. Qxc1 {[%clk 0:00:20.6]} 31... dxc5 {[%clk 0:00:19.3]} 32.
bxc5 {[%clk 0:00:20.3]} 32... Rd8 {[%clk 0:00:19.4]} 33. Ba2 {[%clk 0:00:18.4]}
33... Kg7 {[%clk 0:00:18.6]} 34. Rxf7+ {[%clk 0:00:15.2]} 34... Qxf7 {[%clk
0:00:16.9]} 35. Bxf7 {[%clk 0:00:15]} 35... Kxf7 {[%clk 0:00:17.8]} 36. Bxe5
{[%clk 0:00:13]} 36... Nxe5 {[%clk 0:00:17.7]} 37. Qf4+ {[%clk 0:00:13]} 37...
Ke6 {[%clk 0:00:17.1]} 38. Qf5+ {[%clk 0:00:13.4]} 1-0

[Event "*** Titled Tuesday Blitz"]
[Site "Chess.com"]
[Date "2020.03.03"]
[Round "6"]
[White "Dale"]
[Black "MartinCerveny"]
[Result "0-1"]
[WhiteElo "1943"]
[BlackElo "2622"]
[TimeControl "180+1"]
[EndTime "14:02:27 PST"]
[Termination "MartinCerveny won by checkmate"]

1. c3 {[%clk 0:03:00.9]} 1... Nf6 {[%clk 0:02:58.5]} 2. d3 {[%clk 0:03:01.8]}
2... g6 {[%clk 0:02:58.2]} 3. Nf3 {[%clk 0:03:01]} 3... Bg7 {[%clk 0:02:58.3]}
4. Nbd2 {[%clk 0:03:00.5]} 4... O-O {[%clk 0:02:58.3]} 5. Qc2 {[%clk 0:02:59.1]}
5... d6 {[%clk 0:02:58.2]} 6. e4 {[%clk 0:02:58.9]} 6... c5 {[%clk 0:02:58.2]}
7. Be2 {[%clk 0:02:59]} 7... Nc6 {[%clk 0:02:58.2]} 8. O-O {[%clk 0:02:59]} 8...
Rb8 {[%clk 0:02:58.4]} 9. a4 {[%clk 0:02:55.6]} 9... a6 {[%clk 0:02:57.9]} 10.
Rd1 {[%clk 0:02:52]} 10... b5 {[%clk 0:02:57.7]} 11. axb5 {[%clk 0:02:50.7]}
11... axb5 {[%clk 0:02:58.6]} 12. h3 {[%clk 0:02:44.2]} 12... b4 {[%clk
0:02:58.5]} 13. d4 {[%clk 0:02:32.9]} 13... bxc3 {[%clk 0:02:57.6]} 14. bxc3
{[%clk 0:02:32.3]} 14... cxd4 {[%clk 0:02:57.5]} 15. cxd4 {[%clk 0:02:31.1]}
15... Nb4 {[%clk 0:02:55.4]} 16. Qa4 {[%clk 0:02:26.6]} 16... Bd7 {[%clk
0:02:53.5]} 17. Qa7 {[%clk 0:02:24.6]} 17... Ra8 {[%clk 0:02:19.5]} 18. Qxa8
{[%clk 0:02:24]} 18... Qxa8 {[%clk 0:02:20.4]} 19. Rxa8 {[%clk 0:02:24]} 19...
Rxa8 {[%clk 0:02:20.6]} 20. Bc4 {[%clk 0:02:19.1]} 20... e6 {[%clk 0:02:18]} 21.
Nf1 {[%clk 0:02:10.4]} 21... Nxe4 {[%clk 0:02:15.2]} 22. Bf4 {[%clk 0:02:04.4]}
22... d5 {[%clk 0:02:14.9]} 23. Bb3 {[%clk 0:02:02.3]} 23... Ra3 {[%clk
0:02:13.3]} 24. Rb1 {[%clk 0:01:58.6]} 24... Nc3 {[%clk 0:02:06.6]} 25. Rb2
{[%clk 0:01:57.4]} 25... Nd3 {[%clk 0:01:58.6]} 26. Bd6 {[%clk 0:01:53.4]} 26...
Ra1 {[%clk 0:01:44.6]} 27. Rc2 {[%clk 0:01:51.1]} 27... Nc1 {[%clk 0:01:39]} 28.
N3d2 {[%clk 0:01:44.6]} 28... N1e2+ {[%clk 0:01:36.5]} 29. Kh2 {[%clk
0:01:44.1]} 29... Bxd4 {[%clk 0:01:32.8]} 30. h4 {[%clk 0:01:38.5]} 30... h5
{[%clk 0:01:29.9]} 31. g4 {[%clk 0:01:35.1]} 31... hxg4 {[%clk 0:01:28.5]} 32.
h5 {[%clk 0:01:34.9]} 32... gxh5 {[%clk 0:01:28.1]} 33. Ne3 {[%clk 0:01:35]}
33... f5 {[%clk 0:01:21.6]} 34. Ng2 {[%clk 0:01:33.8]} 34... Rc1 {[%clk
0:01:15.9]} 35. Rb2 {[%clk 0:01:27.6]} 35... Ne4 {[%clk 0:01:10.4]} 36. Nxe4
{[%clk 0:01:27.5]} 36... Bxb2 {[%clk 0:01:09.3]} 37. Nf6+ {[%clk 0:01:27.9]}
37... Kf7 {[%clk 0:01:09.1]} 38. Nxd7 {[%clk 0:01:27.9]} 38... Bf6 {[%clk
0:00:52.6]} 39. Ne5+ {[%clk 0:01:26.7]} 39... Bxe5+ {[%clk 0:00:51.9]} 40. Bxe5
{[%clk 0:01:26.9]} 40... Rb1 {[%clk 0:00:44.4]} 41. Ba4 {[%clk 0:01:26.6]} 41...
Rb4 {[%clk 0:00:43.1]} 42. Bc6 {[%clk 0:01:26.2]} 42... f4 {[%clk 0:00:43]} 43.
Nh4 {[%clk 0:01:23.3]} 43... Re4 {[%clk 0:00:37]} 44. Bb2 {[%clk 0:01:20.5]}
44... Rc4 {[%clk 0:00:35.4]} 45. Bd7 {[%clk 0:01:19.3]} 45... Rc2 {[%clk
0:00:34.6]} 46. Be5 {[%clk 0:01:17.1]} 46... d4 {[%clk 0:00:33.2]} 47. Ba4
{[%clk 0:01:15.5]} 47... d3 {[%clk 0:00:31.2]} 48. Bxc2 {[%clk 0:01:14.1]} 48...
dxc2 {[%clk 0:00:32.1]} 49. Bb2 {[%clk 0:01:13.2]} 49... c1=Q {[%clk 0:00:31.7]}
50. Bxc1 {[%clk 0:01:13.2]} 50... Nxc1 {[%clk 0:00:32.6]} 51. Ng2 {[%clk
0:01:12.7]} 51... e5 {[%clk 0:00:32.6]} 52. Ne1 {[%clk 0:01:11.5]} 52... Kf6
{[%clk 0:00:32.2]} 53. Kg2 {[%clk 0:01:11.7]} 53... e4 {[%clk 0:00:31.4]} 54.
Nc2 {[%clk 0:01:11.6]} 54... Ke5 {[%clk 0:00:30.7]} 55. Ne1 {[%clk 0:01:11.1]}
55... Ne2 {[%clk 0:00:29.3]} 56. Kh1 {[%clk 0:01:10.8]} 56... Nd4 {[%clk
0:00:28.1]} 57. Ng2 {[%clk 0:01:09.2]} 57... Kf5 {[%clk 0:00:26.6]} 58. Nh4+
{[%clk 0:01:07.4]} 58... Kg5 {[%clk 0:00:26.6]} 59. Ng2 {[%clk 0:01:08.1]} 59...
h4 {[%clk 0:00:27]} 60. Kh2 {[%clk 0:01:07.8]} 60... h3 {[%clk 0:00:27]} 61. Ne1
{[%clk 0:01:07.1]} 61... Kf5 {[%clk 0:00:27.2]} 62. Kh1 {[%clk 0:01:07.3]} 62...
Ke5 {[%clk 0:00:27.3]} 63. Nf3+ {[%clk 0:01:06.4]} 63... exf3 {[%clk 0:00:26.3]}
64. Kh2 {[%clk 0:01:05.2]} 64... Ke4 {[%clk 0:00:26.4]} 65. Kh1 {[%clk
0:01:05.5]} 65... Kd3 {[%clk 0:00:26.8]} 66. Kh2 {[%clk 0:01:05.9]} 66... Ke2
{[%clk 0:00:26.6]} 67. Kg1 {[%clk 0:01:06.2]} 67... g3 {[%clk 0:00:25.8]} 68.
fxg3 {[%clk 0:01:04.9]} 68... fxg3 {[%clk 0:00:25.4]} 69. Kh1 {[%clk 0:01:05.4]}
69... g2+ {[%clk 0:00:23.5]} 70. Kg1 {[%clk 0:01:04.7]} 70... h2+ {[%clk
0:00:22.9]} 71. Kxh2 {[%clk 0:01:04.4]} 71... Kf2 {[%clk 0:00:22.8]} 72. Kh3
{[%clk 0:01:04]} 72... g1=Q {[%clk 0:00:21.9]} 73. Kh4 {[%clk 0:01:04.2]} 73...
Qg6 {[%clk 0:00:21.1]} 74. Kh3 {[%clk 0:01:04]} 74... Qg3# {[%clk 0:00:20.9]}
0-1

[Event "*** Titled Tuesday Blitz"]
[Site "Chess.com"]
[Date "2020.03.03"]
[Round "6"]
[White "DonPreuss"]
[Black "Mikhail_Golubev"]
[Result "1-0"]
[WhiteElo "2218"]
[BlackElo "2492"]
[TimeControl "180+1"]
[EndTime "14:02:27 PST"]
[Termination "DonPreuss won on time"]

1. Nc3 {[%clk 0:03:00.9]} 1... g6 {[%clk 0:02:56.6]} 2. e4 {[%clk 0:03:00.6]}
2... Bg7 {[%clk 0:02:56.7]} 3. f4 {[%clk 0:03:00]} 3... c5 {[%clk 0:02:55.2]} 4.
Nf3 {[%clk 0:02:59.9]} 4... Nc6 {[%clk 0:02:55.1]} 5. d3 {[%clk 0:02:55.8]} 5...
d6 {[%clk 0:02:51.5]} 6. Be2 {[%clk 0:02:55.8]} 6... e6 {[%clk 0:02:47.9]} 7.
O-O {[%clk 0:02:56.1]} 7... Nge7 {[%clk 0:02:47.9]} 8. Qe1 {[%clk 0:02:55.4]}
8... b6 {[%clk 0:02:39.1]} 9. Qh4 {[%clk 0:02:28.7]} 9... Bb7 {[%clk 0:02:28.4]}
10. f5 {[%clk 0:02:28.1]} 10... exf5 {[%clk 0:02:25.4]} 11. Bg5 {[%clk
0:02:26.3]} 11... h6 {[%clk 0:02:15.1]} 12. Bf6 {[%clk 0:02:25.2]} 12... g5
{[%clk 0:02:08.8]} 13. Bxe7 {[%clk 0:02:17.4]} 13... Qxe7 {[%clk 0:01:56.2]} 14.
Qh5 {[%clk 0:02:09.7]} 14... Nd4 {[%clk 0:01:50.3]} 15. Nxd4 {[%clk 0:02:06.3]}
15... Bxd4+ {[%clk 0:01:49.3]} 16. Kh1 {[%clk 0:02:06.4]} 16... f4 {[%clk
0:01:41.4]} 17. Bg4 {[%clk 0:02:03.7]} 17... Qf6 {[%clk 0:01:09.5]} 18. Nd5
{[%clk 0:01:56.5]} 18... Bxd5 {[%clk 0:01:05.8]} 19. exd5 {[%clk 0:01:56.5]}
19... O-O {[%clk 0:00:54.2]} 20. c3 {[%clk 0:01:53.5]} 20... Be3 {[%clk
0:00:51.1]} 21. Rae1 {[%clk 0:01:51]} 21... Qg6 {[%clk 0:00:39.9]} 22. Qh3
{[%clk 0:01:47.1]} 22... f5 {[%clk 0:00:37.2]} 23. Bh5 {[%clk 0:01:12.2]} 23...
Qf6 {[%clk 0:00:34.2]} 24. g4 {[%clk 0:00:48.8]} 24... fxg4 {[%clk 0:00:30.5]}
25. Bxg4 {[%clk 0:00:48.2]} 25... Qg7 {[%clk 0:00:13.7]} 26. Be6+ {[%clk
0:00:46]} 26... Kh8 {[%clk 0:00:13.5]} 27. Qh5 {[%clk 0:00:41.1]} 27... Rf6
{[%clk 0:00:13.2]} 28. Rf3 {[%clk 0:00:40.2]} 28... Raf8 {[%clk 0:00:12.7]} 29.
Re2 {[%clk 0:00:37.5]} 29... a6 {[%clk 0:00:07.2]} 30. Rh3 {[%clk 0:00:37.1]}
30... Qg6 {[%clk 0:00:06.3]} 31. Qg4 {[%clk 0:00:34.7]} 31... Kg7 {[%clk
0:00:05.9]} 32. Rh5 {[%clk 0:00:33.6]} 32... f3 {[%clk 0:00:05.7]} 33. Re1
{[%clk 0:00:25.1]} 33... f2 {[%clk 0:00:06]} 34. Rf1 {[%clk 0:00:25.5]} 34...
Rf3 {[%clk 0:00:04.7]} 35. Rh3 {[%clk 0:00:21.9]} 35... R8f4 {[%clk 0:00:03.9]}
36. Qxf3 {[%clk 0:00:20.2]} 36... Rxf3 {[%clk 0:00:03.5]} 37. Rxf3 {[%clk
0:00:21.1]} 37... Qxd3 {[%clk 0:00:03.1]} 38. Kg2 {[%clk 0:00:20.3]} 38... Qe2
{[%clk 0:00:02.5]} 39. Bg4 {[%clk 0:00:19.5]} 39... Qd2 {[%clk 0:00:01.6]} 40.
h3 {[%clk 0:00:16.6]} 40... Qxd5 {[%clk 0:00:01.1]} 41. h4 {[%clk 0:00:15]} 1-0

[Event "*** Titled Tuesday Blitz"]
[Site "Chess.com"]
[Date "2020.03.03"]
[Round "6"]
[White "Alopekos"]
[Black "MateusViageiro"]
[Result "1-0"]
[WhiteElo "2429"]
[BlackElo "2201"]
[TimeControl "180+1"]
[EndTime "14:02:28 PST"]
[Termination "Alopekos won by resignation"]

1. e4 {[%clk 0:02:47.5]} 1... c5 {[%clk 0:02:59.2]} 2. Nc3 {[%clk 0:02:47.5]}
2... d6 {[%clk 0:02:59.3]} 3. Nge2 {[%clk 0:02:47.2]} 3... Nf6 {[%clk
0:02:58.5]} 4. d4 {[%clk 0:02:47.2]} 4... cxd4 {[%clk 0:02:58.3]} 5. Nxd4 {[%clk
0:02:48.1]} 5... a6 {[%clk 0:02:57.8]} 6. Be3 {[%clk 0:02:48.2]} 6... e5 {[%clk
0:02:57.1]} 7. Nb3 {[%clk 0:02:48.5]} 7... Be6 {[%clk 0:02:56.6]} 8. f4 {[%clk
0:02:47.6]} 8... exf4 {[%clk 0:02:54.9]} 9. Bxf4 {[%clk 0:02:48.5]} 9... Nc6
{[%clk 0:02:54.9]} 10. Qd2 {[%clk 0:02:48.5]} 10... d5 {[%clk 0:02:53.7]} 11.
O-O-O {[%clk 0:02:48.5]} 11... dxe4 {[%clk 0:02:51.5]} 12. Qe3 {[%clk
0:02:47.4]} 12... Qc8 {[%clk 0:02:33.8]} 13. Nxe4 {[%clk 0:02:47]} 13... Nxe4
{[%clk 0:02:31]} 14. Qxe4 {[%clk 0:02:47.9]} 14... Be7 {[%clk 0:02:30.4]} 15.
Bd3 {[%clk 0:02:35]} 15... Nb4 {[%clk 0:02:25.5]} 16. Nd4 {[%clk 0:02:34.7]}
16... Nxd3+ {[%clk 0:02:10]} 17. Rxd3 {[%clk 0:02:34.5]} 17... O-O {[%clk
0:02:04.4]} 18. Re1 {[%clk 0:01:51]} 18... Bb4 {[%clk 0:01:54.4]} 19. Nxe6
{[%clk 0:01:27.8]} 19... fxe6 {[%clk 0:01:43.5]} 20. Qxb4 {[%clk 0:01:26.9]}
20... a5 {[%clk 0:01:27.7]} 21. Qe4 {[%clk 0:01:18.5]} 21... Ra6 {[%clk
0:01:27.5]} 22. Rd6 {[%clk 0:01:05.9]} 22... Rxd6 {[%clk 0:01:09.7]} 23. Bxd6
{[%clk 0:01:06.8]} 23... Re8 {[%clk 0:01:07.9]} 24. Be5 {[%clk 0:01:00.7]} 24...
b5 {[%clk 0:01:06]} 25. Rd1 {[%clk 0:00:50.9]} 25... a4 {[%clk 0:01:05.2]} 26.
a3 {[%clk 0:00:50.1]} 26... Rd8 {[%clk 0:00:54]} 27. Rxd8+ {[%clk 0:00:44.3]}
27... Qxd8 {[%clk 0:00:53.1]} 28. Qg4 {[%clk 0:00:35]} 28... Qd7 {[%clk
0:00:49.9]} 29. Qd4 {[%clk 0:00:33.9]} 29... Qe7 {[%clk 0:00:47.9]} 30. h4
{[%clk 0:00:24.5]} 30... h6 {[%clk 0:00:45.7]} 31. Kd2 {[%clk 0:00:24.1]} 31...
Qf7 {[%clk 0:00:43.5]} 32. Ke2 {[%clk 0:00:19.1]} 32... Qh5+ {[%clk 0:00:41.7]}
33. Kd2 {[%clk 0:00:15.1]} 33... Qg6 {[%clk 0:00:39.8]} 34. Qd8+ {[%clk
0:00:14.6]} 34... Kh7 {[%clk 0:00:39.1]} 35. Qd3 {[%clk 0:00:14]} 35... Qf5
{[%clk 0:00:32.9]} 36. g4 {[%clk 0:00:11.1]} 36... Qg6 {[%clk 0:00:30.9]} 37. h5
{[%clk 0:00:09.9]} 37... Qxd3+ {[%clk 0:00:29.6]} 38. Kxd3 {[%clk 0:00:10.8]}
38... g6 {[%clk 0:00:30.3]} 39. Kd4 {[%clk 0:00:10.2]} 39... gxh5 {[%clk
0:00:31.2]} 40. gxh5 {[%clk 0:00:11.1]} 40... Kg8 {[%clk 0:00:30.9]} 41. Bf4
{[%clk 0:00:11]} 41... Kg7 {[%clk 0:00:28.6]} 42. Ke5 {[%clk 0:00:10.8]} 1-0

[Event "*** Titled Tuesday Blitz"]
[Site "Chess.com"]
[Date "2020.03.03"]
[Round "6"]
[White "SahajGrover"]
[Black "pedromartinez91"]
[Result "1-0"]
[WhiteElo "2723"]
[BlackElo "2554"]
[TimeControl "180+1"]
[EndTime "14:02:32 PST"]
[Termination "SahajGrover won on time"]

1. e4 {[%clk 0:02:59.3]} 1... e6 {[%clk 0:03:00]} 2. d4 {[%clk 0:02:59.1]} 2...
d5 {[%clk 0:03:00.2]} 3. Nc3 {[%clk 0:02:59.7]} 3... Nf6 {[%clk 0:02:59.3]} 4.
exd5 {[%clk 0:02:58.7]} 4... exd5 {[%clk 0:02:58.8]} 5. Bd3 {[%clk 0:02:59.4]}
5... Nc6 {[%clk 0:02:54.7]} 6. Nge2 {[%clk 0:02:58.7]} 6... Nb4 {[%clk
0:02:53.9]} 7. Bb5+ {[%clk 0:02:58.4]} 7... c6 {[%clk 0:02:53.6]} 8. Ba4 {[%clk
0:02:59.1]} 8... a5 {[%clk 0:02:53.6]} 9. a3 {[%clk 0:02:59]} 9... Na6 {[%clk
0:02:53.7]} 10. O-O {[%clk 0:02:58.6]} 10... Be7 {[%clk 0:02:53.6]} 11. Ng3
{[%clk 0:02:52.2]} 11... O-O {[%clk 0:02:49]} 12. Nce2 {[%clk 0:02:52]} 12... b5
{[%clk 0:02:15.9]} 13. Bb3 {[%clk 0:02:50.6]} 13... a4 {[%clk 0:02:16.8]} 14.
Ba2 {[%clk 0:02:48.8]} 14... b4 {[%clk 0:01:59.3]} 15. axb4 {[%clk 0:02:44.8]}
15... Nxb4 {[%clk 0:02:00.2]} 16. Bb1 {[%clk 0:02:45]} 16... c5 {[%clk
0:01:34.5]} 17. c3 {[%clk 0:02:41.7]} 17... Nc6 {[%clk 0:01:34.8]} 18. Rxa4
{[%clk 0:02:36.1]} 18... Rxa4 {[%clk 0:01:35.7]} 19. Qxa4 {[%clk 0:02:36.6]}
19... Bd7 {[%clk 0:01:36.6]} 20. dxc5 {[%clk 0:02:29.1]} 20... Bxc5 {[%clk
0:01:30.3]} 21. Qc2 {[%clk 0:02:26.9]} 21... Re8 {[%clk 0:01:07.4]} 22. Bg5
{[%clk 0:02:21.9]} 22... g6 {[%clk 0:01:01.9]} 23. Nf4 {[%clk 0:02:22]} 23...
Re5 {[%clk 0:00:51.4]} 24. Bxf6 {[%clk 0:02:12.9]} 24... Qxf6 {[%clk 0:00:52.3]}
25. Nd3 {[%clk 0:02:13.3]} 25... Bb6 {[%clk 0:00:31.1]} 26. Nxe5 {[%clk
0:02:12.1]} 26... Nxe5 {[%clk 0:00:32]} 27. Qd2 {[%clk 0:01:42.7]} 27... Bb5
{[%clk 0:00:26]} 28. Re1 {[%clk 0:01:37.6]} 28... Ng4 {[%clk 0:00:24.9]} 29. Nh1
{[%clk 0:01:16.6]} 29... d4 {[%clk 0:00:18.5]} 30. cxd4 {[%clk 0:01:07.6]} 30...
Bxd4 {[%clk 0:00:19.4]} 31. Re4 {[%clk 0:01:06.3]} 31... Qd6 {[%clk 0:00:08.9]}
32. Qf4 {[%clk 0:00:23.7]} 32... Bxf2+ {[%clk 0:00:07.9]} 33. Nxf2 {[%clk
0:00:21.3]} 1-0

[Event "*** Titled Tuesday Blitz"]
[Site "Chess.com"]
[Date "2020.03.03"]
[Round "6"]
[White "GameOverBro"]
[Black "guillembaches"]
[Result "0-1"]
[WhiteElo "2563"]
[BlackElo "2435"]
[TimeControl "180+1"]
[EndTime "14:02:41 PST"]
[Termination "guillembaches won by resignation"]

1. e4 {[%clk 0:03:00.9]} 1... c5 {[%clk 0:02:59.6]} 2. Ne2 {[%clk 0:02:58.7]}
2... d6 {[%clk 0:02:59.2]} 3. g3 {[%clk 0:02:58.2]} 3... Nf6 {[%clk 0:02:58]} 4.
Bg2 {[%clk 0:02:58.6]} 4... e5 {[%clk 0:02:48.6]} 5. c3 {[%clk 0:02:57.4]} 5...
Be7 {[%clk 0:02:48.5]} 6. d4 {[%clk 0:02:57.4]} 6... Nbd7 {[%clk 0:02:48.6]} 7.
O-O {[%clk 0:02:55.8]} 7... O-O {[%clk 0:02:48.1]} 8. h3 {[%clk 0:02:55.6]} 8...
Re8 {[%clk 0:02:41.3]} 9. Be3 {[%clk 0:02:50.1]} 9... b6 {[%clk 0:02:34.4]} 10.
Nd2 {[%clk 0:02:48.6]} 10... exd4 {[%clk 0:02:30.3]} 11. cxd4 {[%clk 0:02:48]}
11... Bf8 {[%clk 0:02:30.5]} 12. Nc3 {[%clk 0:02:36.5]} 12... Bb7 {[%clk
0:02:27.4]} 13. d5 {[%clk 0:02:36.5]} 13... a6 {[%clk 0:02:23.6]} 14. a4 {[%clk
0:02:36.8]} 14... Ne5 {[%clk 0:02:17]} 15. Qc2 {[%clk 0:02:29.6]} 15... Rc8
{[%clk 0:02:04]} 16. f4 {[%clk 0:02:25.5]} 16... Ng6 {[%clk 0:02:00.4]} 17. Nc4
{[%clk 0:02:21.8]} 17... Nd7 {[%clk 0:01:47.2]} 18. Rfe1 {[%clk 0:02:14]} 18...
h5 {[%clk 0:01:34.9]} 19. Bf3 {[%clk 0:01:58.3]} 19... h4 {[%clk 0:01:31.6]} 20.
g4 {[%clk 0:01:56.5]} 20... Be7 {[%clk 0:01:26.4]} 21. Kg2 {[%clk 0:01:47.2]}
21... Qc7 {[%clk 0:01:21.8]} 22. Qd2 {[%clk 0:01:36.5]} 22... Bf6 {[%clk
0:01:13.8]} 23. g5 {[%clk 0:01:34.9]} 23... Bxc3 {[%clk 0:01:13.6]} 24. bxc3
{[%clk 0:01:28.6]} 24... b5 {[%clk 0:01:10.8]} 25. axb5 {[%clk 0:01:28.1]} 25...
axb5 {[%clk 0:01:11.7]} 26. Na5 {[%clk 0:01:28.3]} 26... Ra8 {[%clk 0:01:08.3]}
27. Nxb7 {[%clk 0:01:26.6]} 27... Qxb7 {[%clk 0:01:09.2]} 28. Rxa8 {[%clk
0:01:24.9]} 28... Qxa8 {[%clk 0:01:05.9]} 29. Bg4 {[%clk 0:01:18.8]} 29... Nb6
{[%clk 0:01:02.9]} 30. Bf5 {[%clk 0:00:55.6]} 30... Nc4 {[%clk 0:00:54.7]} 31.
Qf2 {[%clk 0:00:52.9]} 31... Qa3 {[%clk 0:00:49.6]} 32. Bd7 {[%clk 0:00:52]}
32... Rxe4 {[%clk 0:00:47.6]} 33. Bxb5 {[%clk 0:00:50.5]} 33... Nxe3+ {[%clk
0:00:45.1]} 34. Rxe3 {[%clk 0:00:48.7]} 34... Nxf4+ {[%clk 0:00:44.5]} 35. Kf3
{[%clk 0:00:38.6]} 35... Rxe3+ {[%clk 0:00:29.8]} 36. Qxe3 {[%clk 0:00:39.5]}
36... Ng6 {[%clk 0:00:29.8]} 37. Be8 {[%clk 0:00:18.6]} 37... Ne5+ {[%clk
0:00:27.3]} 38. Kg2 {[%clk 0:00:14.4]} 38... Qa8 {[%clk 0:00:27]} 39. Bc6 {[%clk
0:00:11]} 39... Nxc6 {[%clk 0:00:25.9]} 40. dxc6 {[%clk 0:00:11.9]} 40... Qxc6+
{[%clk 0:00:26]} 41. Kh2 {[%clk 0:00:12.5]} 41... Qd7 {[%clk 0:00:24.4]} 42. Qf4
{[%clk 0:00:11.7]} 42... Qe6 {[%clk 0:00:22.9]} 43. c4 {[%clk 0:00:09.6]} 43...
Qe5 {[%clk 0:00:22.7]} 44. Qxe5 {[%clk 0:00:08.3]} 44... dxe5 {[%clk 0:00:23.6]}
45. Kg2 {[%clk 0:00:09]} 45... f6 {[%clk 0:00:23.6]} 46. Kf3 {[%clk 0:00:09.9]}
46... fxg5 {[%clk 0:00:23.4]} 47. Ke4 {[%clk 0:00:10.4]} 47... Kf7 {[%clk
0:00:23.1]} 48. Kxe5 {[%clk 0:00:10.7]} 48... g4 {[%clk 0:00:22.8]} 49. Kf4
{[%clk 0:00:11.1]} 49... g3 {[%clk 0:00:22.1]} 0-1

[Event "*** Titled Tuesday Blitz"]
[Site "Chess.com"]
[Date "2020.03.03"]
[Round "6"]
[White "pedroholly22"]
[Black "karinachess1"]
[Result "0-1"]
[WhiteElo "2320"]
[BlackElo "2517"]
[TimeControl "180+1"]
[EndTime "14:02:41 PST"]
[Termination "karinachess1 won by resignation"]

1. Nc3 {[%clk 0:02:49.3]} 1... d5 {[%clk 0:02:57.9]} 2. e4 {[%clk 0:02:48.6]}
2... d4 {[%clk 0:02:56.1]} 3. Nce2 {[%clk 0:02:48]} 3... e5 {[%clk 0:02:41]} 4.
d3 {[%clk 0:02:47]} 4... Bd6 {[%clk 0:02:35.4]} 5. f4 {[%clk 0:02:46.2]} 5...
Ne7 {[%clk 0:02:23.4]} 6. f5 {[%clk 0:02:44.4]} 6... c5 {[%clk 0:02:16.6]} 7.
Nf3 {[%clk 0:02:44]} 7... Nbc6 {[%clk 0:02:15.9]} 8. g4 {[%clk 0:02:42.3]} 8...
Bd7 {[%clk 0:02:05.6]} 9. Ng3 {[%clk 0:02:42.4]} 9... Qa5+ {[%clk 0:01:47.4]}
10. Bd2 {[%clk 0:02:41.7]} 10... Qb6 {[%clk 0:01:47.6]} 11. Nh5 {[%clk
0:02:40.8]} 11... Rg8 {[%clk 0:01:43.5]} 12. f6 {[%clk 0:02:38.9]} 12... Ng6
{[%clk 0:01:36.5]} 13. Nxg7+ {[%clk 0:02:37.9]} 13... Kd8 {[%clk 0:01:34.7]} 14.
Nf5 {[%clk 0:02:33.5]} 14... Kc7 {[%clk 0:01:34.4]} 15. h3 {[%clk 0:02:26.4]}
15... Qxb2 {[%clk 0:01:26.7]} 16. Rb1 {[%clk 0:02:26.1]} 16... Qxa2 {[%clk
0:01:26.8]} 17. Be2 {[%clk 0:02:04.4]} 17... b6 {[%clk 0:01:25.6]} 18. Kf2
{[%clk 0:02:01.8]} 18... Qe6 {[%clk 0:01:22.4]} 19. h4 {[%clk 0:01:59.6]} 19...
Qxf6 {[%clk 0:01:18]} 20. Bg5 {[%clk 0:01:58.9]} 20... Qe6 {[%clk 0:01:15.1]}
21. h5 {[%clk 0:01:58.9]} 21... Nge7 {[%clk 0:01:11.9]} 22. Bxe7 {[%clk
0:01:54.4]} 22... Bxe7 {[%clk 0:01:12.8]} 23. Rg1 {[%clk 0:01:51]} 23... Bg5
{[%clk 0:01:12]} 24. Nxg5 {[%clk 0:01:26.1]} 24... Rxg5 {[%clk 0:01:12.9]} 25.
Qd2 {[%clk 0:01:25.9]} 25... h6 {[%clk 0:01:12.3]} 26. c3 {[%clk 0:01:24.3]}
26... dxc3 {[%clk 0:01:00.5]} 27. Qxc3 {[%clk 0:01:24]} 27... Nd4 {[%clk
0:01:01]} 28. Ra1 {[%clk 0:01:20.6]} 28... Qc6 {[%clk 0:00:53.5]} 29. Ne3 {[%clk
0:01:19.3]} 29... Be6 {[%clk 0:00:51.5]} 30. Bd1 {[%clk 0:01:17.5]} 30... a5
{[%clk 0:00:46.8]} 31. Nf5 {[%clk 0:01:01.6]} 31... Bxf5 {[%clk 0:00:41]} 32.
exf5 {[%clk 0:01:01.8]} 32... e4 {[%clk 0:00:41.2]} 33. Rg3 {[%clk 0:00:55]}
33... exd3 {[%clk 0:00:23.1]} 34. Rxd3 {[%clk 0:00:53.9]} 34... Qd6 {[%clk
0:00:23.3]} 35. Rg3 {[%clk 0:00:48.2]} 35... Re8 {[%clk 0:00:20]} 36. Rc1 {[%clk
0:00:46.4]} 36... Qf4+ {[%clk 0:00:17.2]} 37. Kg2 {[%clk 0:00:45.5]} 37... Ne2
{[%clk 0:00:15.3]} 38. Bxe2 {[%clk 0:00:39.5]} 38... Rxe2+ {[%clk 0:00:16.2]}
39. Kh3 {[%clk 0:00:39.2]} 39... Qf2 {[%clk 0:00:14.9]} 40. Rh1 {[%clk
0:00:36.2]} 40... Rg8 {[%clk 0:00:12.8]} 41. Qf6 {[%clk 0:00:32.9]} 41... Rd8
{[%clk 0:00:12.6]} 42. Qxf7+ {[%clk 0:00:29.2]} 42... Rd7 {[%clk 0:00:13.1]} 43.
Qf6 {[%clk 0:00:27.2]} 43... Re3 {[%clk 0:00:12.2]} 44. Qh4 {[%clk 0:00:20.6]}
44... Rdd3 {[%clk 0:00:10.7]} 45. Rg1 {[%clk 0:00:20.4]} 45... Rxg3+ {[%clk
0:00:09.6]} 46. Rxg3 {[%clk 0:00:19.8]} 46... Qf1+ {[%clk 0:00:09.9]} 47. Kh2
{[%clk 0:00:19.9]} 47... Rd2+ {[%clk 0:00:10.4]} 0-1